bitfinex/quotes_ETHUSD_20240715
["timestamp","ask_amount","ask_price","bid_price","bid_amount"]
[1721042407562,0.61697834,3337.8,3337.7,0.60991564]
[1721042407802,0.62446645,3338.1,3337.9,2.99589]
[1721042408005,0.62446645,3338.1,3338.0,3.178]
[1721042408202,1.51752681,3338.1,3338.0,2.628]
[1721042408403,3.78804992,3338.1,3338.0,2.628]
[1721042408989,5.03593704,3338.1,3337.6,2.99615]
[1721042409206,0.93713641,3337.9,3337.7,3.0]
[1721042409499,0.62480538,3337.8,3337.7,3.0]
[1721042410263,1.44854428,3337.8,3337.7,3.0]
[1721042410460,2.030239,3337.8,3337.7,3.0]
[1721042410708,0.62480538,3337.8,3337.7,3.0391183]
[1721042410871,0.62480538,3337.8,3337.7,6.0351883]
[1721042411303,1.44855029,3337.8,3337.7,6.0351883]
[1721042411622,1.4054434,3337.8,3337.7,6.0351883]
[1721042411781,2.03026557,3337.8,3337.7,6.0351883]
[1721042412164,2.03026557,3337.8,3337.7,10.19719213]
[1721042412404,0.62482217,3338.0,3337.9,5.99178]
[1721042412912,0.62482217,3338.0,3337.9,6.03070636]
[1721042413065,0.62482217,3338.1,3338.0,2.9958]
[1721042413268,0.62482217,3338.1,3338.0,5.6238]
[1721042413463,3.67458712,3338.4,3338.1,2.99565]
[1721042413464,1.51888175,3338.2,3338.1,2.99565]
[1721042413668,0.93727437,3338.2,3338.1,3.03443883]
[1721042413863,1.51888175,3338.2,3338.1,3.03443883]
[1721042414066,1.40519852,3338.2,3338.1,3.03443883]
[1721042414330,0.62452872,3338.2,3338.1,3.03443883]
[1721042414469,2.02972724,3338.2,3338.1,3.94418887]
[1721042414666,1.40519852,3338.2,3338.1,3.94418887]
[1721042414975,0.93727437,3338.3,3338.2,2.99562]
[1721042415178,2.82479589,3338.3,3338.2,2.99562]
[1721042415403,2.34212375,3338.3,3338.2,3.03434008]
[1721042415871,2.3419081,3338.3,3338.2,3.03434008]
[1721042416068,1.7598584,3338.3,3338.2,3.03434008]
[1721042416308,1.51796361,3338.3,3338.2,3.03434008]
[1721042416514,0.93661527,3338.3,3338.2,3.72978541]
[1721042416714,1.40459147,3338.3,3338.2,3.72978541]
[1721042417224,2.02891812,3338.3,3338.2,3.72978541]
[1721042417508,1.40459147,3338.3,3338.2,3.72978541]
[1721042417676,0.62432665,3338.4,3338.3,2.99553]
[1721042418021,1.44733943,3338.4,3338.3,7.54936617]
[1721042418304,1.44733943,3338.4,3338.3,7.48946136]
[1721042418605,1.40420105,3338.4,3338.3,7.48946136]
[1721042418772,0.62432665,3338.5,3338.4,5.99088]
[1721042418971,1.44727661,3338.5,3338.4,8.61888]
[1721042419290,0.58115418,3338.5,3338.4,9.35290791]
[1721042419617,0.62432665,3338.7,3338.6,2.99526]
[1721042420130,1.75936525,3338.7,3338.6,3.03370509]
[1721042420425,2.02765705,3338.7,3338.6,3.03370509]
[1721042420632,1.44665297,3338.7,3338.6,3.03370509]
[1721042420951,2.02765705,3338.7,3338.6,3.03370509]
[1721042421135,0.62390299,3339.0,3338.8,2.99508]
[1721042421284,0.5808001,3338.9,3338.8,5.99016]
[1721042421484,0.62390299,3339.1,3339.0,2.9949]
[1721042421685,1.44607346,3339.1,3339.0,3.03307018]
[1721042422196,1.44607346,3339.1,3339.0,0.03817018]
[1721042422403,2.44037168,3339.1,3339.0,0.03817018]
[1721042422616,5.47578868,3339.1,3339.0,0.03817018]
[1721042422957,5.47578868,3339.1,3337.8,2.99593]
[1721042422958,4.53906518,3339.1,3337.8,2.99593]
[1721042423245,2.4549,3338.1,3337.7,2.628]
[1721042423388,2.4549,3338.1,3337.7,5.62407]
[1721042423389,2.02559178,3338.0,3337.7,5.62407]
[1721042423592,0.58040948,3337.9,3337.7,5.62407]
[1721042423935,0.62327318,3338.0,3337.7,5.62407]
[1721042424149,2.01886183,3338.0,3337.7,5.62407]
[1721042424346,2.4549,3338.1,3338.0,2.9958]
[1721042424347,0.62327318,3338.1,3338.0,2.9958]
[1721042424494,0.81896795,3338.1,3338.0,2.9958]
[1721042424833,1.39559689,3338.1,3338.0,2.9958]
[1721042424989,0.62323224,3338.1,3338.0,2.9958]
[1721042425192,0.62323224,3338.1,3337.8,2.99598]
[1721042425193,0.93490977,3338.2,3337.8,2.99598]
[1721042425396,1.4421474,3338.1,3338.0,2.9958]
[1721042425705,1.4421474,3338.1,3338.0,5.6238]
[1721042425706,0.57660994,3338.1,3338.0,5.6238]
[1721042425903,0.62320529,3338.2,3338.0,5.6614831]
[1721042426106,2.01884728,3338.2,3338.0,5.6614831]
[1721042426306,0.62320529,3338.3,3338.0,5.6614831]
[1721042426936,2.01891064,3338.2,3338.1,2.9957]
[1721042427091,0.576669,3338.2,3338.1,2.9957]
[1721042427300,0.576669,3338.2,3338.1,3.03331434]
[1721042427500,0.62320529,3338.3,3338.1,3.03331434]
[1721042427738,0.62320529,3338.3,3338.1,0.03761434]
[1721042427903,2.01891202,3338.3,3338.1,0.03761434]
[1721042428103,2.01891202,3338.2,3338.1,0.03761434]
[1721042428304,1.39570673,3338.2,3338.1,0.03761434]
[1721042428504,1.39578122,3338.2,3338.1,0.03761434]
[1721042428807,1.44238211,3338.2,3338.1,0.03761434]
[1721042429322,3.24917604,3338.2,3338.1,0.03761434]
[1721042429525,4.76084033,3338.2,3338.1,0.03761434]
[1721042429721,2.4301,3338.1,3337.6,2.628]
[1721042429928,3.05331384,3337.7,3337.2,6.00241998]
[1721042430120,2.01899506,3337.6,3337.2,6.00241998]
[1721042430309,0.57670518,3337.5,3337.2,6.00241998]
[1721042430638,0.62321384,3337.6,3337.2,6.00241998]
[1721042430843,2.01863349,3337.6,3337.2,6.00241998]
[1721042431051,1.39541773,3337.5,3337.2,3.00590998]
[1721042431262,0.62321384,3337.6,3337.2,3.00590998]
[1721042431465,2.01860458,3337.6,3337.2,3.00590998]
[1721042431664,2.01858683,3337.5,3337.2,3.00590998]
[1721042431808,2.01858683,3337.4,3337.2,3.00590998]
[1721042432012,0.57653334,3337.3,3337.2,3.00590998]
[1721042432213,0.62321384,3337.4,3337.2,3.00590998]
[1721042432421,0.62321384,3337.5,3337.2,3.00590998]
[1721042432712,0.62321384,3337.6,3337.2,3.00590998]
[1721042432916,0.62321384,3337.5,3337.2,3.00590998]
[1721042433110,0.62321384,3337.6,3337.2,6.00241998]
[1721042433356,2.01857162,3337.6,3337.2,3.00590998]
[1721042433557,1.39535778,3337.5,3337.2,3.00590998]
[1721042433713,0.62321384,3337.6,3337.2,3.00590998]
[1721042433714,0.57651578,3337.4,3337.2,3.00590998]
[1721042434049,0.62321384,3337.6,3337.2,6.9083444]
[1721042434251,2.01855818,3337.6,3337.2,6.9083444]
[1721042434459,1.19973167,3337.6,3337.2,6.9083444]
[1721042434624,1.39532057,3337.5,3337.2,6.9083444]
[1721042434832,0.62311872,3337.6,3337.2,6.9083444]
[1721042435038,0.62311872,3337.5,3337.2,3.00590998]
[1721042435234,0.81883775,3337.5,3337.2,3.00590998]
[1721042435555,0.62311872,3337.6,3337.2,3.00590998]
[1721042435755,2.0185077,3337.6,3337.2,3.00590998]
[1721042435928,1.39538898,3337.5,3337.2,3.00590998]
[1721042436123,0.57654073,3337.4,3337.2,3.00590998]
[1721042436340,0.62311872,3337.6,3337.2,3.00590998]
[1721042436576,2.01855248,3337.6,3337.2,3.00590998]
[1721042436745,2.01855248,3337.6,3337.2,6.00242998]
[1721042437068,0.62311872,3337.5,3337.2,6.00242998]
[1721042437273,0.62311872,3337.6,3337.2,3.00590998]
[1721042437450,0.62311872,3337.5,3337.2,3.00590998]
[1721042437635,0.62311872,3337.4,3337.2,3.00590998]
[1721042438267,0.62311872,3337.3,3337.2,3.00590998]
[1721042438485,2.01856284,3337.3,3337.2,3.00590998]
[1721042438826,1.44200102,3337.3,3337.2,3.00590998]
[1721042439065,2.89001872,3337.3,3337.2,3.00590998]
[1721042439288,3.66234412,3337.3,3337.2,0.37790998]
[1721042440476,2.84346182,3337.3,3337.2,0.37790998]
[1721042440681,4.28500885,3337.3,3337.2,0.37790998]
[1721042440968,4.28500885,3337.3,3337.2,0.45386213]
[1721042441125,2.2669,3337.3,3337.2,0.45386213]
[1721042441325,4.28450505,3337.3,3337.2,0.45386213]
[1721042441526,3.66164729,3337.3,3337.2,0.45386213]
[1721042441968,3.66164729,3337.3,3337.2,3.08186213]
[1721042442353,3.6612477,3337.3,3337.2,3.08186213]
[1721042442967,3.66127368,3337.3,3337.2,3.08186213]
[1721042443278,4.28413144,3337.3,3337.2,3.08186213]
[1721042443586,2.84317323,3337.3,3337.2,3.08186213]
[1721042444377,3.66083923,3337.3,3337.2,3.08186213]
[1721042444537,1.39393923,3337.3,3337.2,3.08186213]
[1721042444877,0.57590129,3337.3,3337.2,3.08186213]
[1721042445065,0.62285776,3337.6,3337.2,3.69571429]
[1721042445485,0.62285776,3337.7,3337.2,3.69571429]
[1721042445688,1.19877518,3337.7,3337.6,2.628]
[1721042445893,0.62285776,3337.7,3337.6,2.628]
[1721042446190,0.62285776,3337.7,3337.6,2.70368044]
[1721042446487,1.44083138,3337.7,3337.6,2.70368044]
[1721042446643,2.016394,3337.7,3337.6,2.70368044]
[1721042446846,1.39389104,3337.7,3337.6,2.70368044]
[1721042447151,1.75226026,3337.7,3337.6,2.70368044]
[1721042447347,0.93428664,3337.7,3337.6,2.70368044]
[1721042447546,1.75229913,3337.7,3337.6,2.70368044]
[1721042447843,2.32825026,3337.8,3337.6,2.70368044]
[1721042448044,1.39396362,3337.7,3337.6,2.70368044]
[1721042448248,1.44045186,3337.7,3337.6,2.70368044]
[1721042448442,0.62244951,3337.7,3337.6,2.70368044]
[1721042448882,0.81801249,3337.7,3337.6,2.70368044]
[1721042449069,1.39396362,3337.7,3337.6,2.70368044]
[1721042449375,0.81801249,3337.7,3337.6,2.70368044]
[1721042450259,3.90052907,3337.7,3337.6,0.07568044]
[1721042450592,2.4773,3337.7,3337.2,3.00590998]
[1721042450760,2.01576816,3337.6,3337.2,3.00590998]
[1721042450954,0.62228834,3337.4,3337.2,0.37790998]
[1721042451355,1.43996683,3337.4,3337.2,0.37790998]
[1721042451577,2.01571753,3337.3,3337.2,0.37790998]
[1721042451761,3.89746683,3337.3,3337.2,0.37790998]
[1721042451956,4.47321753,3337.3,3337.2,0.37790998]
[1721042453849,4.47263555,3337.3,3337.2,0.37790998]
[1721042455191,5.13789932,3337.3,3337.2,0.37790998]
[1721042455400,5.58481608,3337.3,3337.2,0.37790998]
[1721042455685,9.90188467,3337.3,3337.2,0.4517782]
[1721042455898,9.90188467,3337.3,3337.2,0.37790998]
[1721042456395,5.30594,3336.7,3336.3,0.119162]
[1721042456611,0.62163514,3336.4,3336.3,0.119162]
[1721042456889,6.29319271,3336.4,3336.3,0.119162]
[1721042457054,4.68203955,3336.4,3336.3,0.119162]
[1721042457290,4.34380614,3336.4,3336.3,0.119162]
[1721042457487,5.4179748,3336.4,3336.3,0.119162]
[1721042457718,5.41797769,3336.4,3336.3,0.119162]
[1721042457890,4.79649644,3336.4,3336.3,0.119162]
[1721042458100,5.41799897,3336.4,3336.3,0.119162]
[1721042458304,5.41773082,3336.4,3336.3,0.119162]
[1721042458830,5.49267151,3336.4,3336.3,0.119162]
[1721042459315,4.87143713,3336.4,3336.3,0.119162]
[1721042459518,5.49267151,3336.4,3336.3,0.119162]
[1721042460002,3.48611334,3336.4,3336.3,0.119162]
[1721042460206,5.4164033,3336.4,3336.3,0.119162]
[1721042460521,1.55248233,3336.8,3336.3,2.747162]
[1721042460522,2.358,3336.8,3336.3,2.747162]
[1721042460829,2.358,3336.8,3336.4,0.07449773]
[1721042461529,0.62099293,3337.0,3336.4,0.07449773]
[1721042461833,0.62099293,3337.3,3336.7,2.628]
[1721042462016,0.62099293,3337.5,3336.7,2.628]
[1721042462228,1.86574975,3337.5,3336.8,0.07414878]
[1721042462430,2.00569554,3337.5,3336.8,0.07414878]
[1721042462599,2.00569554,3337.5,3336.7,2.628]
[1721042462803,2.00569554,3337.5,3336.8,2.99683]
[1721042463012,2.3131,3337.6,3337.1,2.628]
[1721042463299,3.151,3338.5,3337.2,2.99651]
[1721042463300,0.62121045,3337.7,3337.2,2.99651]
[1721042463544,0.62121045,3337.9,3337.5,2.628]
[1721042463730,2.00626975,3338.0,3337.5,2.628]
[1721042463940,0.57128727,3337.9,3337.6,0.07352744]
[1721042464100,0.62121045,3338.0,3337.6,0.07352744]
[1721042464300,2.53386513,3338.0,3337.6,0.07352744]
[1721042464507,1.38510998,3337.9,3337.6,0.07352744]
[1721042465208,0.62121045,3338.0,3337.6,3.06968744]
[1721042465462,0.62121045,3338.1,3337.6,3.06968744]
[1721042465825,0.62121045,3338.3,3337.6,3.06968744]
[1721042466079,0.62121045,3338.3,3337.9,2.628]
[1721042466221,0.62121045,3338.4,3337.9,2.628]
[1721042466544,2.00733135,3338.4,3337.9,2.628]
[1721042467367,2.00733135,3338.4,3338.0,2.9958]
[1721042467652,0.57171689,3338.3,3338.1,2.99567]
[1721042467965,0.62121045,3338.5,3338.2,2.628]
[1721042468242,2.0079936,3338.5,3338.3,0.0730382]
[1721042468463,0.57199051,3338.4,3338.3,0.0730382]
[1721042468745,0.81499433,3338.4,3338.3,0.0730382]
[1721042468956,0.62225493,3338.5,3338.3,0.0730382]
[1721042469120,0.81500159,3338.4,3338.3,0.0730382]
[1721042469323,1.19439208,3338.5,3338.3,0.0730382]
[1721042469635,0.57213715,3338.4,3338.3,0.0730382]
[1721042469849,0.57213227,3338.4,3338.3,0.0730382]
[1721042470312,0.62225493,3338.6,3338.3,3.0685682]
[1721042470858,0.62225493,3338.6,3338.3,0.0730382]
[1721042471153,2.00927507,3338.5,3338.3,0.0730382]
[1721042471326,0.62225493,3338.6,3338.3,0.0730382]
[1721042471856,0.81488705,3338.5,3338.3,0.0730382]
[1721042472145,0.62225493,3338.6,3338.3,0.0730382]
[1721042472357,0.81497004,3338.5,3338.3,0.0730382]
[1721042472564,0.62225493,3338.6,3338.3,0.0730382]
[1721042472709,0.8149226,3338.5,3338.3,0.0730382]
[1721042472905,0.90226965,3338.6,3338.3,0.0730382]
[1721042473111,2.00926251,3338.5,3338.3,0.0730382]
[1721042473345,0.57208329,3338.4,3338.0,2.99579]
[1721042473570,0.62225493,3338.6,3338.4,0.07291149]
[1721042473857,0.62225493,3338.6,3338.2,5.62356]
[1721042474353,0.62225493,3338.6,3338.3,0.0729281]
[1721042474563,2.00965324,3338.6,3338.3,0.0729281]
[1721042474726,0.57224488,3338.5,3338.3,0.0729281]
[1721042474915,0.62225493,3338.6,3338.3,0.0729281]
[1721042475110,0.95949414,3338.6,3338.3,0.0729281]
[1721042475414,0.57222977,3338.5,3338.3,0.0729281]
[1721042475747,0.62225493,3338.6,3338.3,0.0729281]
[1721042476041,0.62225493,3338.7,3338.3,0.0729281]
[1721042476413,0.81505584,3338.6,3338.3,0.0729281]
[1721042476615,0.62225493,3338.7,3338.3,0.0729281]
[1721042477663,1.38712669,3338.6,3338.3,0.0729281]
[1721042477867,0.62225493,3338.7,3338.3,0.0729281]
[1721042478151,0.814854,3338.6,3338.3,0.0729281]
[1721042478350,0.62214498,3338.7,3338.3,0.0729281]
[1721042478716,1.19406379,3338.8,3338.3,0.0729281]
[1721042478931,2.00885947,3338.8,3338.3,0.0729281]
[1721042479138,0.62208516,3338.9,3338.3,0.0729281]
[1721042479348,2.00886309,3338.9,3338.3,0.0729281]
[1721042479653,3.11368516,3339.0,3338.3,0.0729281]
[1721042479865,0.57192527,3338.9,3338.3,0.0729281]
[1721042481257,3.11368516,3339.0,3338.3,0.0729281]
[1721042481564,0.57177701,3338.9,3338.3,0.0729281]
[1721042481774,2.4916,3339.0,3338.3,0.0729281]
[1721042482068,0.62186031,3339.1,3338.3,3.0683981]
[1721042482249,0.81438774,3339.0,3338.4,2.99542]
[1721042482466,0.62186031,3339.1,3338.4,2.99542]
[1721042482708,1.0406325,3339.1,3338.5,0.07278835]
[1721042482903,0.57162294,3339.0,3338.5,0.07278835]
[1721042484341,0.41877219,3339.1,3338.5,0.07278835]
[1721042486052,4.50094535,3339.0,3338.5,0.07278835]
[1721042486269,5.41465,3338.8,3337.8,2.628]
[1721042486462,0.62145131,3338.6,3337.6,7.41]
[1721042486746,2.84179742,3338.5,3337.6,7.41]
[1721042486959,0.57131011,3338.4,3337.6,7.41]
[1721042487261,0.57131011,3338.4,3337.7,2.99606]
[1721042487976,1.45679058,3338.5,3337.7,2.99606]
[1721042488175,0.57121261,3338.4,3337.7,2.99606]
[1721042488384,0.62145131,3338.6,3337.7,2.99606]
[1721042488702,0.81368169,3338.5,3337.6,7.41]
[1721042488865,0.57120858,3338.4,3337.7,2.99605]
[1721042489205,0.93217697,3338.7,3337.7,2.99605]
[1721042489206,0.62145131,3338.6,3337.7,2.99605]
[1721042489507,2.0063491,3338.5,3337.6,7.41]
[1721042489702,0.57121168,3338.4,3337.5,2.99618]
[1721042489887,0.62145131,3338.7,3337.8,2.628]
[1721042490092,2.00641847,3338.7,3337.8,5.62397]
[1721042490274,0.57124135,3338.6,3337.8,5.62397]
[1721042490604,3.04095131,3338.8,3337.9,2.99587]
[1721042490780,0.57127171,3338.7,3337.9,2.99587]
[1721042490974,3.04095131,3338.8,3338.0,2.9958]
[1721042491198,0.57126967,3338.7,3338.0,2.9958]
[1721042491778,0.57126967,3338.7,3338.2,2.628]
[1721042492204,0.57126967,3338.7,3338.2,5.62358]
[1721042492419,0.62131428,3338.9,3338.3,0.74319137]
[1721042492581,0.62131428,3338.9,3338.3,3.73866137]
[1721042492915,0.62131428,3339.0,3338.3,3.73866137]
[1721042493131,2.00641318,3339.1,3338.6,2.628]
[1721042493277,2.00641318,3339.1,3337.9,2.4722]
[1721042493278,3.01651428,3339.2,3338.5,2.628]
[1721042493594,1.77993202,3339.1,3338.5,2.628]
[1721042493781,0.55142737,3339.0,3338.5,2.628]
[1721042493980,1.01616285,3339.1,3338.5,2.628]
[1721042494190,1.01616285,3339.1,3338.2,2.99558]
[1721042494528,1.43419314,3339.0,3338.2,2.99558]
[1721042494828,0.39484857,3339.1,3338.3,2.9955]
[1721042494829,1.01614762,3339.1,3338.3,2.9955]
[1721042495024,0.81294995,3339.0,3338.3,2.9955]
[1721042495219,0.62129905,3339.1,3338.3,2.9955]
[1721042495515,0.81292164,3339.0,3338.3,2.9955]
[1721042495715,0.62129905,3339.1,3338.3,2.9955]
[1721042495921,0.81289436,3339.0,3338.3,2.9955]
[1721042496119,0.62129905,3339.1,3338.3,3.49153737]
[1721042496643,0.62129905,3339.1,3338.3,3.55144118]
[1721042496860,0.62129905,3339.1,3338.5,2.628]
[1721042497146,1.55324762,3339.6,3338.9,5.62299]
[1721042497147,0.62129905,3339.5,3338.9,5.62299]
[1721042497301,3.02809905,3339.6,3338.9,5.62299]
[1721042497498,3.02808131,3339.6,3338.9,5.62299]
[1721042497700,2.4068,3339.6,3338.9,5.62299]
[1721042499352,2.4068,3339.6,3338.9,6.72815443]
[1721042499909,2.4068,3339.6,3339.0,2.9949]
[1721042500110,0.62128131,3339.8,3339.0,2.9949]
[1721042500351,0.62128131,3339.8,3338.9,6.72811443]
[1721042500515,0.62128131,3339.8,3339.2,2.99471]
[1721042500711,0.62128131,3339.8,3339.0,0.0723767]
[1721042500958,0.62128131,3339.8,3339.1,3.49479094]
[1721042501335,0.62128131,3339.9,3339.2,3.06694702]
[1721042501538,1.4334338,3339.8,3339.2,3.06694702]
[1721042501844,0.62128131,3339.8,3339.2,3.06694702]
[1721042502056,0.62128131,3339.9,3339.2,3.06694702]
[1721042502256,1.43340043,3339.8,3339.2,3.06694702]
[1721042502427,0.62128131,3339.8,3339.2,3.06694702]
[1721042502831,0.81237033,3339.7,3339.2,0.07223702]
[1721042503027,0.62128131,3339.8,3339.2,0.07223702]
[1721042503227,0.81238975,3339.7,3339.0,5.98965]
[1721042503429,0.62128131,3339.7,3339.3,0.07216718]
[1721042503762,0.81285351,3339.6,3339.4,0.07209735]
[1721042503967,0.62127524,3339.7,3339.1,2.99481]
[1721042504126,0.62127524,3339.7,3339.2,0.07223702]
[1721042504467,1.43469319,3339.6,3339.2,0.07223702]
[1721042504635,0.62127524,3339.6,3339.2,0.07223702]
[1721042505177,1.43464223,3339.6,3339.2,0.07223702]
[1721042505326,1.43464223,3339.5,3339.2,0.07223702]
[1721042505526,0.81336699,3339.4,3339.2,0.07223702]
[1721042505726,0.62127524,3339.5,3339.2,0.07223702]
[1721042506287,0.62127524,3339.7,3339.4,2.99451]
[1721042506452,0.62127524,3339.8,3339.5,2.99445]
[1721042506650,1.43530052,3339.8,3339.5,3.06647235]
[1721042506854,0.62127524,3339.9,3339.6,2.99436]
[1721042507075,2.4407,3340.3,3339.7,2.628]
[1721042507277,0.62221004,3340.1,3339.7,5.69414033]
[1721042507513,0.62221004,3340.2,3339.7,5.69414033]
[1721042507648,3.68512008,3340.6,3339.7,5.69414033]
[1721042507649,0.62221004,3340.3,3339.7,5.69414033]
[1721042507848,0.81425089,3340.2,3339.7,5.75401973]
[1721042508083,0.62221004,3340.3,3339.8,0.75462613]
[1721042508396,0.62221004,3340.4,3340.1,2.628]
[1721042508565,1.4364757,3340.3,3339.9,0.07172442]
[1721042508762,0.62221004,3340.3,3339.9,0.07172442]
[1721042509074,0.62221004,3340.3,3339.5,2.9944]
[1721042509596,1.43640057,3340.3,3339.6,0.07192514]
[1721042509802,0.62221004,3340.3,3339.6,0.07192514]
[1721042510169,2.3399,3340.7,3339.6,0.07192514]
[1721042510489,2.3399,3340.7,3339.8,2.628]
[1721042510490,0.62227537,3340.4,3339.8,2.628]
[1721042510692,0.81419106,3340.3,3340.2,2.628]
[1721042511056,0.81419106,3340.3,3340.2,2.69947135]
[1721042511497,0.62227537,3340.4,3340.2,2.69947135]
[1721042512016,0.62227537,3340.5,3340.2,2.69947135]
[1721042512198,1.24455075,3340.8,3340.2,2.69947135]
[1721042512199,0.62227537,3340.6,3340.2,2.69947135]
[1721042512369,0.62227537,3340.7,3340.2,2.69947135]
[1721042512711,0.81375812,3340.6,3340.2,2.69947135]
[1721042512921,0.62227537,3340.7,3340.2,2.69947135]
[1721042513096,0.81375926,3340.6,3340.2,2.69947135]
[1721042513300,0.62227537,3340.7,3340.2,3.56821848]
[1721042513839,0.62227537,3340.8,3340.2,6.56203848]
[1721042514336,0.62227537,3340.9,3340.6,2.628]
[1721042514544,3.02397537,3341.0,3340.6,2.628]
[1721042514703,1.38369499,3340.9,3340.7,0.0711113]
[1721042515439,0.57041191,3340.9,3340.7,0.0711113]
[1721042515611,3.02397537,3341.0,3340.7,0.0711113]
[1721042515813,0.57023552,3340.9,3340.7,0.0711113]
[1721042516517,2.4017,3341.0,3340.7,0.0711113]
[1721042516723,0.96583536,3340.9,3340.7,0.0711113]
[1721042517018,0.96583536,3340.9,3340.8,0.0710324]
[1721042517019,0.39573884,3340.9,3340.8,0.0710324]
[1721042517217,0.57007229,3340.9,3340.8,0.0710324]
[1721042517540,2.4017,3341.0,3340.2,2.628]
[1721042517908,2.4017,3341.0,3340.3,0.07138092]
[1721042518249,0.64478755,3340.9,3340.3,0.07138092]
[1721042518398,1.45741085,3340.9,3340.3,0.07138092]
[1721042518597,2.22295948,3340.8,3339.8,2.628]
[1721042518839,0.56983459,3340.7,3340.0,0.0715931]
[1721042519020,0.07484772,3340.6,3340.0,0.0715931]
[1721042519222,0.07484772,3340.6,3339.8,2.628]
[1721042519420,1.53662172,3340.8,3340.1,0.07152329]
[1721042519606,0.78633468,3340.7,3339.8,2.628]
[1721042519802,0.78633468,3340.7,3339.9,0.0716629]
[1721042520207,2.86131743,3340.6,3339.9,0.0716629]
[1721042520412,0.64467186,3340.5,3339.9,0.0716629]
[1721042520607,2.07831861,3340.5,3339.9,0.0716629]
[1721042520920,1.47792788,3340.4,3339.5,2.628]
[1721042521116,0.07485444,3340.3,3340.0,0.0715931]
[1721042521328,0.07485444,3340.3,3339.5,2.628]
[1721042521656,0.90814184,3340.4,3339.5,2.628]
[1721042521827,0.90814184,3340.4,3339.6,0.07187235]
[1721042524227,0.57000237,3340.3,3339.6,0.07187235]
[1721042524648,0.07485435,3340.2,3339.6,0.07187235]
[1721042524951,2.4529,3340.1,3339.6,0.07187235]
[1721042525825,8.44146,3339.7,3339.6,0.07187235]
[1721042526023,2.99449,3339.5,3338.3,7.41]
[1721042526223,0.62097481,3339.3,3338.2,2.3276]
[1721042526444,1.86296742,3340.1,3338.1,2.628]
[1721042526445,0.62097481,3340.2,3339.6,2.99436]
[1721042526644,1.24194963,3340.5,3339.6,2.99436]
[1721042526645,0.62097481,3340.5,3340.1,2.628]
[1721042526850,3.04997481,3340.7,3340.1,2.628]
[1721042527076,3.04997481,3340.7,3340.2,0.06436878]
[1721042527271,0.96413086,3340.6,3340.2,0.06436878]
[1721042527482,1.77383705,3340.6,3340.2,0.06436878]
[1721042527667,0.56593679,3340.5,3340.2,0.06436878]
[1721042527989,0.56593679,3340.5,3339.5,5.62245]
[1721042528268,0.62097481,3340.5,3339.9,2.628]
[1721042528433,0.5755173,3340.4,3339.9,2.628]
[1721042528633,0.5755173,3340.4,3340.0,0.06448139]
[1721042529473,0.5755173,3340.4,3339.9,2.628]
[1721042529766,0.5755173,3340.4,3339.5,5.62244]
[1721042530074,0.5755173,3340.4,3339.6,0.06476144]
[1721042530272,0.1594842,3340.3,3339.6,0.06476144]
[1721042530568,2.07169594,3340.2,3339.6,0.06476144]
[1721042530779,1.99677738,3340.1,3339.1,5.628]
[1721042531070,0.62118099,3340.2,3339.2,0.06504434]
[1721042531272,0.62118099,3340.1,3339.2,0.06504434]
[1721042531837,0.62119962,3340.1,3339.2,0.06504434]
[1721042532040,4.99083257,3340.1,3339.2,0.06504434]
[1721042532378,0.62119962,3339.8,3339.2,0.06504434]
[1721042532550,0.62119962,3339.6,3339.2,0.06504434]
[1721042532740,0.39130644,3339.5,3338.7,2.628]
[1721042532945,1.99693662,3339.5,3338.7,2.628]
[1721042533250,0.5659731,3339.4,3338.8,0.06532373]
[1721042533449,0.62119962,3339.5,3338.8,0.06532373]
[1721042533659,0.93179943,3339.6,3338.8,0.06532373]
[1721042533660,1.99731509,3339.4,3338.8,0.06532373]
[1721042533858,0.62119962,3339.5,3338.8,0.06532373]
[1721042534033,1.72812045,3339.5,3338.8,0.06532373]
[1721042534233,1.37613264,3339.4,3338.8,0.06532373]
[1721042534557,1.99733226,3339.4,3338.8,0.12522166]
[1721042534863,0.62119962,3339.5,3338.8,0.12522166]
[1721042535070,2.2852,3339.7,3338.8,0.12522166]
[1721042535071,0.62119962,3339.7,3339.1,2.628]
[1721042535244,0.56634417,3339.6,3339.5,2.628]
[1721042535596,0.62119962,3339.9,3339.5,2.69177081]
[1721042536470,1.99829992,3339.8,3339.5,2.69177081]
[1721042536671,0.56654362,3339.7,3339.5,2.69177081]
[1721042536893,0.62119962,3339.8,3339.5,2.69177081]
[1721042537203,0.62119962,3339.8,3339.5,0.06377081]
[1721042537491,1.99865443,3339.7,3339.1,2.628]
[1721042537799,0.62119962,3339.8,3339.1,2.628]
[1721042538360,0.62119962,3339.6,3339.1,2.628]
[1721042538559,0.62235282,3339.7,3339.1,2.628]
[1721042538864,0.62235282,3339.8,3339.1,2.628]
[1721042539060,0.62235282,3339.7,3339.1,2.628]
[1721042539302,2.00064552,3339.9,3339.5,2.628]
[1721042539486,0.62235282,3340.1,3339.6,0.05987931]
[1721042539699,1.55588205,3340.2,3339.9,2.628]
[1721042539859,0.62235282,3340.4,3340.0,0.05987414]
[1721042540210,0.93352923,3340.6,3340.0,0.05987414]
[1721042540211,0.62235282,3340.6,3340.3,2.628]
[1721042540415,0.62235282,3340.8,3340.4,0.05986607]
[1721042540696,2.00163991,3340.7,3340.4,0.05986607]
[1721042540989,0.56744816,3340.6,3340.4,0.05986607]
[1721042541194,0.62235282,3340.7,3340.5,2.628]
[1721042541355,1.18978727,3340.6,3340.5,2.628]
[1721042541701,0.62235282,3340.6,3340.5,2.628]
[1721042542484,1.37925595,3340.6,3340.5,2.628]
[1721042542805,0.93352923,3340.7,3340.5,2.628]
[1721042542994,2.31278518,3340.6,3340.5,2.628]
[1721042543160,2.31278518,3340.6,3340.5,2.69106998]
[1721042543686,1.74535073,3340.6,3340.5,2.69106998]
[1721042543859,0.93352923,3340.6,3340.5,2.69106998]
[1721042544259,2.31278518,3340.6,3340.5,2.69106998]
[1721042544493,0.93352923,3340.6,3340.5,2.69106998]
[1721042545464,2.00327459,3340.6,3340.5,2.69106998]
[1721042546189,0.62322199,3340.6,3340.5,2.69106998]
[1721042546371,2.00327459,3340.6,3340.5,2.69106998]
[1721042547096,0.62322199,3340.6,3340.5,2.69106998]
[1721042547662,0.62329739,3340.6,3340.5,2.69106998]
[1721042547871,0.93494608,3340.7,3340.5,2.69106998]
[1721042548107,2.31526005,3340.7,3340.5,2.69106998]
[1721042548399,1.38031397,3340.6,3340.5,2.69106998]
[1721042548610,1.43589542,3340.6,3340.5,2.69106998]
[1721042548763,0.62345128,3340.6,3340.5,2.69106998]
[1721042548980,0.62345128,3340.7,3340.5,2.69106998]
[1721042549220,1.19132111,3340.7,3340.5,2.69106998]
[1721042549515,1.38051933,3340.6,3340.5,2.69106998]